[Event "Titled Tuesday Blitz August 15 Late 2023"]
[White "Budrewicz, Krzysztof"]
[Black "Young_Catalan_Player09"]
[WhiteFideId "1127950"]
[WhiteElo "2571"]
[BlackElo "2324"]
[Result "1/2-1/2"]
[Round "4"]
[TimeControl "180+1"]
[Date "2023.08.15"]
[WhiteClock "0:00:18"]
[BlackClock "0:01:04"]
[Board "74"]

1. d4 {[%clk 0:03:00]}  d5 {[%clk 0:02:59]} 2. c4 {[%clk 0:03:01]}  c6 {[%clk 0:03:00]} 3. Nc3 {[%clk 0:03:01]}  Nf6 {[%clk 0:02:59]} 4. Nf3 {[%clk 0:03:02]}  a6 {[%clk 0:02:59]} 5. c5 {[%clk 0:03:02]}  b6 {[%clk 0:02:54]} 6. cxb6 {[%clk 0:03:00]}  Nbd7 {[%clk 0:02:55]} 7. Bf4 {[%clk 0:02:57]}  Qxb6 {[%clk 0:02:51]} 8. Na4 {[%clk 0:02:52]}  Qa7 {[%clk 0:02:47]} 9. Rc1 {[%clk 0:02:51]}  Bb7 {[%clk 0:02:46]} 10. e3 {[%clk 0:02:51]}  e6 {[%clk 0:02:46]} 11. a3 {[%clk 0:02:45]}  c5 {[%clk 0:02:42]} 12. dxc5 {[%clk 0:02:44]}  Nxc5 {[%clk 0:02:42]} 13. Nxc5 {[%clk 0:02:44]}  Bxc5 {[%clk 0:02:43]} 14. Qa4+ {[%clk 0:02:44]}  Ke7 {[%clk 0:02:40]} 15. Be2 {[%clk 0:02:42]}  Rhc8 {[%clk 0:02:36]} 16. O-O {[%clk 0:02:42]}  Kf8 {[%clk 0:02:36]} 17. Ne5 {[%clk 0:02:35]}  Kg8 {[%clk 0:02:34]} 18. g4 {[%clk 0:02:32]}  h6 {[%clk 0:02:34]} 19. h4 {[%clk 0:02:32]}  Ne4 {[%clk 0:02:32]} 20. Qd7 {[%clk 0:02:17]}  Rf8 {[%clk 0:02:22]} 21. b4 {[%clk 0:02:10]}  Bb6 {[%clk 0:02:19]} 22. Bd3 {[%clk 0:02:01]}  d4 {[%clk 0:02:16]} 23. Bxe4 {[%clk 0:01:39]}  Bxe4 {[%clk 0:02:16]} 24. Qxa7 {[%clk 0:01:39]}  Bxa7 {[%clk 0:02:11]} 25. exd4 {[%clk 0:01:37]}  Bxd4 {[%clk 0:02:09]} 26. Nd7 {[%clk 0:01:28]}  Rfd8 {[%clk 0:02:07]} 27. Nc5 {[%clk 0:01:27]}  Bf3 {[%clk 0:02:04]} 28. g5 {[%clk 0:01:19]}  hxg5 {[%clk 0:02:04]} 29. Bxg5 {[%clk 0:01:17]}  f6 {[%clk 0:02:04]} 30. Be3 {[%clk 0:01:14]}  e5 {[%clk 0:01:50]} 31. Ne6 {[%clk 0:01:08]}  Rd6 {[%clk 0:01:46]} 32. Nxd4 {[%clk 0:00:56]}  exd4 {[%clk 0:01:45]} 33. Bf4 {[%clk 0:00:57]}  Rd5 {[%clk 0:01:44]} 34. Rc5 {[%clk 0:00:56]}  Rad8 {[%clk 0:01:43]} 35. Kh2 {[%clk 0:00:54]}  d3 {[%clk 0:01:40]} 36. Kg3 {[%clk 0:00:54]}  d2 {[%clk 0:01:27]} 37. Kxf3 {[%clk 0:00:26]}  Rxc5 {[%clk 0:01:25]} 38. Bxd2 {[%clk 0:00:20]}  Rcd5 {[%clk 0:01:24]} 39. Be3 {[%clk 0:00:21]}  Rd3 {[%clk 0:01:25]} 40. Ra1 {[%clk 0:00:21]}  Rc8 {[%clk 0:01:23]} 41. Ke2 {[%clk 0:00:21]}  Rcc3 {[%clk 0:01:23]} 42. a4 {[%clk 0:00:21]}  Ra3 {[%clk 0:01:22]} 43. Rb1 {[%clk 0:00:22]}  Rdb3 {[%clk 0:01:22]} 44. Rxb3 {[%clk 0:00:20]}  Rxb3 {[%clk 0:01:22]} 45. Bc5 {[%clk 0:00:21]}  Ra3 {[%clk 0:01:19]} 46. a5 {[%clk 0:00:21]}  Rb3 {[%clk 0:01:18]} 47. Kd2 {[%clk 0:00:20]}  Kf7 {[%clk 0:01:19]} 48. Kc2 {[%clk 0:00:20]}  Rh3 {[%clk 0:01:12]} 49. b5 {[%clk 0:00:21]}  axb5 {[%clk 0:01:12]} 50. a6 {[%clk 0:00:21]}  Rxh4 {[%clk 0:01:12]} 51. a7 {[%clk 0:00:21]}  Rh8 {[%clk 0:01:12]} 52. Kb3 {[%clk 0:00:22]}  Ke6 {[%clk 0:01:12]} 53. Kb4 {[%clk 0:00:23]}  Kd7 {[%clk 0:01:08]} 54. Kxb5 {[%clk 0:00:23]}  Ra8 {[%clk 0:01:08]} 55. Kb6 {[%clk 0:00:23]}  f5 {[%clk 0:01:07]} 56. Kb7 {[%clk 0:00:22]}  Rxa7+ {[%clk 0:01:04]} 57. Bxa7 {[%clk 0:00:21]}  g5 {[%clk 0:01:05]} 58. Kb6 {[%clk 0:00:20]}  f4 {[%clk 0:01:04]} 59. Bb8 {[%clk 0:00:20]}  Ke6 {[%clk 0:01:04]} 60. Kc6 {[%clk 0:00:21]}  Kf5 {[%clk 0:01:04]} 61. Kd5 {[%clk 0:00:21]}  g4 {[%clk 0:01:04]} 62. Kd4 {[%clk 0:00:21]}  g3 {[%clk 0:01:04]} 63. fxg3 {[%clk 0:00:18]}  fxg3 {[%clk 0:01:04]} 64. Bxg3 {[%clk 0:00:18]} 1/2-1/2


[Site "https://www.chess.com"]

[Event "Titled Tuesday Blitz August 15 Late 2023"]
[White "Sarana, Alexey"]
[Black "De Souza, Cristiano Gomes"]
[WhiteFideId "24133795"]
[BlackFideId "2151758"]
[WhiteElo "3060"]
[BlackElo "2265"]
[Result "1-0"]
[Round "4"]
[TimeControl "180+1"]
[Date "2023.08.15"]
[WhiteClock "0:02:22"]
[BlackClock "0:00:21"]
[Board "78"]

1. d4 {[%clk 0:02:58]}  Nf6 {[%clk 0:02:59]} 2. c4 {[%clk 0:02:57]}  g6 {[%clk 0:02:59]} 3. Nc3 {[%clk 0:02:58]}  d6 {[%clk 0:02:59]} 4. e4 {[%clk 0:02:58]}  Bg7 {[%clk 0:02:58]} 5. Nf3 {[%clk 0:02:57]}  O-O {[%clk 0:02:58]} 6. Be2 {[%clk 0:02:58]}  e5 {[%clk 0:02:59]} 7. Be3 {[%clk 0:02:58]}  Ng4 {[%clk 0:02:58]} 8. Bg5 {[%clk 0:02:59]}  f6 {[%clk 0:02:58]} 9. Bh4 {[%clk 0:02:59]}  Nd7 {[%clk 0:02:58]} 10. h3 {[%clk 0:02:56]}  Nh6 {[%clk 0:02:56]} 11. g4 {[%clk 0:02:56]}  exd4 {[%clk 0:02:53]} 12. Nxd4 {[%clk 0:02:56]}  Ne5 {[%clk 0:02:53]} 13. f4 {[%clk 0:02:56]}  Nc6 {[%clk 0:02:53]} 14. Nxc6 {[%clk 0:02:48]}  bxc6 {[%clk 0:02:52]} 15. Qd2 {[%clk 0:02:49]}  Nf7 {[%clk 0:02:46]} 16. O-O-O {[%clk 0:02:43]}  Bd7 {[%clk 0:02:41]} 17. Bd3 {[%clk 0:02:42]}  Qc8 {[%clk 0:02:36]} 18. Bf2 {[%clk 0:02:43]}  g5 {[%clk 0:02:25]} 19. f5 {[%clk 0:02:37]}  Ne5 {[%clk 0:02:24]} 20. Be2 {[%clk 0:02:37]}  Rf7 {[%clk 0:02:18]} 21. h4 {[%clk 0:02:38]}  h6 {[%clk 0:02:18]} 22. hxg5 {[%clk 0:02:37]}  fxg5 {[%clk 0:02:17]} 23. Rh2 {[%clk 0:02:37]}  Rb8 {[%clk 0:02:01]} 24. Rdh1 {[%clk 0:02:33]}  Rf6 {[%clk 0:01:58]} 25. Be3 {[%clk 0:02:32]}  Kf7 {[%clk 0:01:41]} 26. Bxg5 {[%clk 0:02:31]}  hxg5 {[%clk 0:01:41]} 27. Qxg5 {[%clk 0:02:32]}  Qg8 {[%clk 0:01:37]} 28. Rh7 {[%clk 0:02:32]}  Rf8 {[%clk 0:01:34]} 29. Qh5+ {[%clk 0:02:30]}  Ke7 {[%clk 0:01:30]} 30. g5 {[%clk 0:02:31]}  Rxf5 {[%clk 0:01:27]} 31. exf5 {[%clk 0:02:29]}  Bxf5 {[%clk 0:01:27]} 32. g6 {[%clk 0:02:29]}  Kd8 {[%clk 0:01:23]} 33. Qg5+ {[%clk 0:02:22]}  Kc8 {[%clk 0:00:21]} 34. Qe7 {[%clk 0:02:22]} 1-0


[Site "https://www.chess.com"]

[Event "Titled Tuesday Blitz August 15 Late 2023"]
[White "NigelDwarf"]
[Black "Kuznetsov, Felix"]
[BlackFideId "34147990"]
[WhiteElo "2484"]
[BlackElo "2701"]
[Result "1-0"]
[Round "4"]
[TimeControl "180+1"]
[Date "2023.08.15"]
[WhiteClock "0:00:08"]
[BlackClock "0:00:00"]
[Board "81"]

1. Nf3 {[%clk 0:03:00]}  Nf6 {[%clk 0:02:59]} 2. c4 {[%clk 0:03:00]}  e6 {[%clk 0:02:59]} 3. Nc3 {[%clk 0:03:00]}  d5 {[%clk 0:02:57]} 4. e3 {[%clk 0:03:00]}  b6 {[%clk 0:02:56]} 5. cxd5 {[%clk 0:02:56]}  exd5 {[%clk 0:02:56]} 6. b3 {[%clk 0:02:53]}  Bb7 {[%clk 0:02:56]} 7. Bb2 {[%clk 0:02:53]}  Nbd7 {[%clk 0:02:57]} 8. g3 {[%clk 0:02:53]}  d4 {[%clk 0:02:55]} 9. exd4 {[%clk 0:02:51]}  Be7 {[%clk 0:02:53]} 10. Bg2 {[%clk 0:02:46]}  O-O {[%clk 0:02:54]} 11. O-O {[%clk 0:02:46]}  Re8 {[%clk 0:02:51]} 12. Re1 {[%clk 0:02:39]}  Bf8 {[%clk 0:02:50]} 13. Qc2 {[%clk 0:02:37]}  g6 {[%clk 0:02:40]} 14. Rxe8 {[%clk 0:02:27]}  Nxe8 {[%clk 0:02:39]} 15. Re1 {[%clk 0:02:24]}  Bg7 {[%clk 0:02:39]} 16. Ba3 {[%clk 0:02:17]}  Nd6 {[%clk 0:02:13]} 17. Bxd6 {[%clk 0:01:59]}  cxd6 {[%clk 0:02:13]} 18. Ne4 {[%clk 0:01:58]}  Rc8 {[%clk 0:02:06]} 19. Qd3 {[%clk 0:01:55]}  Nf6 {[%clk 0:02:03]} 20. Nfg5 {[%clk 0:01:42]}  d5 {[%clk 0:01:56]} 21. Nxf6+ {[%clk 0:01:39]}  Qxf6 {[%clk 0:01:57]} 22. Nf3 {[%clk 0:01:36]}  Qd6 {[%clk 0:01:44]} 23. Ne5 {[%clk 0:01:26]}  Qa3 {[%clk 0:01:43]} 24. Qb5 {[%clk 0:01:14]}  Qd6 {[%clk 0:01:26]} 25. h4 {[%clk 0:00:50]}  a6 {[%clk 0:01:21]} 26. Qd3 {[%clk 0:00:47]}  Qa3 {[%clk 0:01:15]} 27. Nd7 {[%clk 0:00:44]}  Qd6 {[%clk 0:00:33]} 28. Bh3 {[%clk 0:00:41]}  Rd8 {[%clk 0:00:29]} 29. Ne5 {[%clk 0:00:38]}  b5 {[%clk 0:00:28]} 30. h5 {[%clk 0:00:36]}  Bc8 {[%clk 0:00:25]} 31. Bxc8 {[%clk 0:00:31]}  Rxc8 {[%clk 0:00:26]} 32. Qf3 {[%clk 0:00:27]}  Qf6 {[%clk 0:00:17]} 33. Qxd5 {[%clk 0:00:25]}  Qf5 {[%clk 0:00:15]} 34. hxg6 {[%clk 0:00:24]}  hxg6 {[%clk 0:00:15]} 35. Re3 {[%clk 0:00:22]}  Rc1+ {[%clk 0:00:08]} 36. Kg2 {[%clk 0:00:22]}  Bxe5 {[%clk 0:00:08]} 37. Rxe5 {[%clk 0:00:15]}  Qf6 {[%clk 0:00:06]} 38. Re8+ {[%clk 0:00:13]}  Kg7 {[%clk 0:00:07]} 39. Qe5 {[%clk 0:00:13]}  Qxe5 {[%clk 0:00:07]} 40. dxe5 {[%clk 0:00:12]}  Rc2 {[%clk 0:00:07]} 41. d4 {[%clk 0:00:13]}  Rxa2 {[%clk 0:00:07]} 42. d5 {[%clk 0:00:13]}  Rb2 {[%clk 0:00:06]} 43. d6 {[%clk 0:00:13]}  Rd2 {[%clk 0:00:05]} 44. Re7 {[%clk 0:00:13]}  Kf8 {[%clk 0:00:05]} 45. Kf3 {[%clk 0:00:14]}  a5 {[%clk 0:00:05]} 46. Ke3 {[%clk 0:00:14]}  Rb2 {[%clk 0:00:04]} 47. Rb7 {[%clk 0:00:12]}  Rxb3+ {[%clk 0:00:04]} 48. Ke4 {[%clk 0:00:13]}  Ke8 {[%clk 0:00:04]} 49. Kd5 {[%clk 0:00:10]}  Rb1 {[%clk 0:00:04]} 50. Re7+ {[%clk 0:00:10]}  Kf8 {[%clk 0:00:00]} 51. Ra7 {[%clk 0:00:08]} 1-0


[Site "https://www.chess.com"]

[Event "Titled Tuesday Blitz August 15 Late 2023"]
[White "Goltsev, Dmitry"]
[Black "Ankerst, Mihael"]
[WhiteFideId "24176710"]
[BlackFideId "14602369"]
[WhiteElo "2644"]
[BlackElo "2462"]
[Result "1-0"]
[Round "4"]
[TimeControl "180+1"]
[Date "2023.08.15"]
[WhiteClock "0:00:06"]
[BlackClock "0:00:19"]
[Board "85"]

1. d4 {[%clk 0:02:56]}  Nf6 {[%clk 0:03:00]} 2. Bf4 {[%clk 0:02:53]}  b6 {[%clk 0:02:59]} 3. Nf3 {[%clk 0:02:52]}  Bb7 {[%clk 0:02:59]} 4. c4 {[%clk 0:02:51]}  e6 {[%clk 0:02:56]} 5. a3 {[%clk 0:02:47]}  c5 {[%clk 0:02:54]} 6. Nc3 {[%clk 0:02:45]}  cxd4 {[%clk 0:02:42]} 7. Nb5 {[%clk 0:02:41]}  d6 {[%clk 0:02:41]} 8. Qxd4 {[%clk 0:02:34]}  e5 {[%clk 0:02:19]} 9. Nxe5 {[%clk 0:02:34]}  a6 {[%clk 0:02:19]} 10. Nxf7 {[%clk 0:01:36]}  Kxf7 {[%clk 0:02:14]} 11. Nxd6+ {[%clk 0:01:35]}  Bxd6 {[%clk 0:02:13]} 12. Bxd6 {[%clk 0:01:34]}  Nc6 {[%clk 0:02:06]} 13. Qf4 {[%clk 0:01:31]}  Re8 {[%clk 0:01:49]} 14. O-O-O {[%clk 0:01:23]}  Qc8 {[%clk 0:01:49]} 15. f3 {[%clk 0:01:07]}  Na5 {[%clk 0:01:27]} 16. e3 {[%clk 0:00:41]}  b5 {[%clk 0:01:22]} 17. c5 {[%clk 0:00:36]}  Qe6 {[%clk 0:00:41]} 18. e4 {[%clk 0:00:22]}  Kg8 {[%clk 0:00:40]} 19. Kb1 {[%clk 0:00:19]}  Rac8 {[%clk 0:00:39]} 20. Bd3 {[%clk 0:00:15]}  Nd7 {[%clk 0:00:38]} 21. e5 {[%clk 0:00:12]}  g6 {[%clk 0:00:31]} 22. Rhe1 {[%clk 0:00:08]}  Nb3 {[%clk 0:00:28]} 23. Bc2 {[%clk 0:00:05]}  Nbxc5 {[%clk 0:00:27]} 24. Qe3 {[%clk 0:00:05]}  Bd5 {[%clk 0:00:16]} 25. b4 {[%clk 0:00:04]}  Na4 {[%clk 0:00:16]} 26. Rxd5 {[%clk 0:00:04]}  Qxd5 {[%clk 0:00:15]} 27. Bb3 {[%clk 0:00:04]}  Rc4 {[%clk 0:00:15]} 28. Rd1 {[%clk 0:00:03]}  Qe6 {[%clk 0:00:15]} 29. Qd3 {[%clk 0:00:03]}  Nab6 {[%clk 0:00:15]} 30. f4 {[%clk 0:00:02]}  Nb8 {[%clk 0:00:14]} 31. g4 {[%clk 0:00:02]}  Nc6 {[%clk 0:00:14]} 32. f5 {[%clk 0:00:03]}  gxf5 {[%clk 0:00:13]} 33. gxf5 {[%clk 0:00:04]}  Qf7 {[%clk 0:00:14]} 34. Rg1+ {[%clk 0:00:04]}  Kh8 {[%clk 0:00:15]} 35. Qg3 {[%clk 0:00:04]}  Rg8 {[%clk 0:00:15]} 36. Qf2 {[%clk 0:00:03]}  Nd4 {[%clk 0:00:16]} 37. Bxc4 {[%clk 0:00:03]}  Qxc4 {[%clk 0:00:14]} 38. Rxg8+ {[%clk 0:00:04]}  Kxg8 {[%clk 0:00:14]} 39. e6 {[%clk 0:00:05]}  Kh8 {[%clk 0:00:15]} 40. Be5+ {[%clk 0:00:05]}  Kg8 {[%clk 0:00:16]} 41. Qg3+ {[%clk 0:00:05]}  Kf8 {[%clk 0:00:17]} 42. Qg7+ {[%clk 0:00:06]}  Ke8 {[%clk 0:00:18]} 43. Qf7+ {[%clk 0:00:06]}  Kd8 {[%clk 0:00:19]} 44. Qf8# {[%clk 0:00:06]} 1-0


[Site "https://www.chess.com"]

[Event "Titled Tuesday Blitz August 15 Late 2023"]
[White "Di Nicolantonio, Lucas"]
[Black "Gurevich, Dmitry"]
[WhiteFideId "680460"]
[BlackFideId "2000407"]
[WhiteElo "2631"]
[BlackElo "2457"]
[Result "0-1"]
[Round "4"]
[TimeControl "180+1"]
[Date "2023.08.15"]
[WhiteClock "0:00:00"]
[BlackClock "0:00:18"]
[Board "86"]

1. Nf3 {[%clk 0:03:00]}  d5 {[%clk 0:02:48]} 2. e3 {[%clk 0:03:00]}  c5 {[%clk 0:02:44]} 3. b3 {[%clk 0:02:59]}  a6 {[%clk 0:02:42]} 4. Bb2 {[%clk 0:02:59]}  Nc6 {[%clk 0:02:42]} 5. Be2 {[%clk 0:02:56]}  d4 {[%clk 0:02:39]} 6. O-O {[%clk 0:02:56]}  g6 {[%clk 0:02:37]} 7. exd4 {[%clk 0:02:55]}  Bg7 {[%clk 0:02:35]} 8. Re1 {[%clk 0:02:49]}  Nh6 {[%clk 0:02:33]} 9. Na3 {[%clk 0:02:32]}  Nf5 {[%clk 0:02:30]} 10. Nc4 {[%clk 0:02:24]}  Ncxd4 {[%clk 0:02:21]} 11. Nxd4 {[%clk 0:02:24]}  Nxd4 {[%clk 0:02:21]} 12. Bd3 {[%clk 0:02:07]}  O-O {[%clk 0:02:13]} 13. Ne5 {[%clk 0:02:01]}  Be6 {[%clk 0:02:04]} 14. f4 {[%clk 0:01:54]}  Qc7 {[%clk 0:02:01]} 15. c3 {[%clk 0:01:51]}  Nf5 {[%clk 0:01:59]} 16. Be4 {[%clk 0:01:43]}  Rac8 {[%clk 0:01:57]} 17. Qf3 {[%clk 0:01:35]}  Nd6 {[%clk 0:01:54]} 18. Bc2 {[%clk 0:01:21]}  Rfd8 {[%clk 0:01:49]} 19. Rad1 {[%clk 0:01:20]}  c4 {[%clk 0:01:42]} 20. Ba3 {[%clk 0:01:16]}  Nb5 {[%clk 0:01:38]} 21. Bb2 {[%clk 0:01:07]}  Nd6 {[%clk 0:01:29]} 22. d3 {[%clk 0:01:04]}  cxb3 {[%clk 0:01:23]} 23. axb3 {[%clk 0:01:04]}  Bxb3 {[%clk 0:01:21]} 24. Bxb3 {[%clk 0:00:55]}  Qb6+ {[%clk 0:01:21]} 25. Qf2 {[%clk 0:00:49]}  Qxb3 {[%clk 0:01:21]} 26. c4 {[%clk 0:00:44]}  e6 {[%clk 0:01:16]} 27. Bd4 {[%clk 0:00:39]}  Nf5 {[%clk 0:01:04]} 28. Bb6 {[%clk 0:00:39]}  Bxe5 {[%clk 0:01:00]} 29. fxe5 {[%clk 0:00:32]}  Rxd3 {[%clk 0:00:59]} 30. Rb1 {[%clk 0:00:31]}  Qxc4 {[%clk 0:00:58]} 31. h3 {[%clk 0:00:29]}  h5 {[%clk 0:00:56]} 32. Ba5 {[%clk 0:00:23]}  b5 {[%clk 0:00:54]} 33. Kh2 {[%clk 0:00:17]}  h4 {[%clk 0:00:53]} 34. Bd2 {[%clk 0:00:13]}  Qd5 {[%clk 0:00:48]} 35. Bg5 {[%clk 0:00:10]}  Rcc3 {[%clk 0:00:45]} 36. Rb4 {[%clk 0:00:09]}  Rd4 {[%clk 0:00:40]} 37. Rxd4 {[%clk 0:00:07]}  Qxd4 {[%clk 0:00:39]} 38. Qe2 {[%clk 0:00:04]}  Qd3 {[%clk 0:00:34]} 39. Qg4 {[%clk 0:00:03]}  Qg3+ {[%clk 0:00:33]} 40. Qxg3 {[%clk 0:00:03]}  hxg3+ {[%clk 0:00:33]} 41. Kg1 {[%clk 0:00:04]}  b4 {[%clk 0:00:25]} 42. Rd1 {[%clk 0:00:04]}  Kh7 {[%clk 0:00:21]} 43. Kf1 {[%clk 0:00:03]}  b3 {[%clk 0:00:20]} 44. Rd7 {[%clk 0:00:02]}  b2 {[%clk 0:00:18]} 45. Rxf7+ {[%clk 0:00:02]}  Kg8 {[%clk 0:00:18]} 46. Rb7 {[%clk 0:00:00]}  Rc1+ {[%clk 0:00:18]} 0-1


[Site "https://www.chess.com"]

[Event "Titled Tuesday Blitz August 15 Late 2023"]
[White "Nefedov, Sergey"]
[Black "Romero Ruscalleda, Josep"]
[WhiteFideId "24113417"]
[BlackFideId "2231859"]
[WhiteElo "2620"]
[BlackElo "2446"]
[Result "1-0"]
[Round "4"]
[TimeControl "180+1"]
[Date "2023.08.15"]
[WhiteClock "0:00:53"]
[BlackClock "0:00:03"]
[Board "88"]

1. e4 {[%clk 0:03:00]}  g6 {[%clk 0:03:00]} 2. d4 {[%clk 0:03:00]}  Bg7 {[%clk 0:03:00]} 3. Nc3 {[%clk 0:03:00]}  d6 {[%clk 0:03:01]} 4. Be3 {[%clk 0:03:00]}  a6 {[%clk 0:03:00]} 5. Qd2 {[%clk 0:03:00]}  b5 {[%clk 0:03:00]} 6. f3 {[%clk 0:02:55]}  Bb7 {[%clk 0:02:57]} 7. Nge2 {[%clk 0:02:55]}  Nd7 {[%clk 0:02:57]} 8. h4 {[%clk 0:02:51]}  h5 {[%clk 0:02:57]} 9. O-O-O {[%clk 0:02:44]}  Rc8 {[%clk 0:02:55]} 10. Kb1 {[%clk 0:02:42]}  c5 {[%clk 0:02:55]} 11. dxc5 {[%clk 0:02:35]}  Nxc5 {[%clk 0:02:54]} 12. Bd4 {[%clk 0:02:35]}  Nf6 {[%clk 0:02:50]} 13. e5 {[%clk 0:02:31]}  dxe5 {[%clk 0:02:43]} 14. Bxe5 {[%clk 0:02:31]}  Qxd2 {[%clk 0:02:42]} 15. Rxd2 {[%clk 0:02:32]}  O-O {[%clk 0:02:39]} 16. Nc1 {[%clk 0:02:28]}  Rfd8 {[%clk 0:02:37]} 17. Rxd8+ {[%clk 0:02:26]}  Rxd8 {[%clk 0:02:37]} 18. Nd3 {[%clk 0:02:24]}  Ncd7 {[%clk 0:02:29]} 19. Bc7 {[%clk 0:02:23]}  Rc8 {[%clk 0:02:26]} 20. Bg3 {[%clk 0:02:22]}  Nd5 {[%clk 0:02:21]} 21. Nxd5 {[%clk 0:02:21]}  Bxd5 {[%clk 0:02:21]} 22. Be2 {[%clk 0:02:21]}  Bc4 {[%clk 0:02:15]} 23. Rd1 {[%clk 0:02:18]}  Nc5 {[%clk 0:02:04]} 24. b3 {[%clk 0:02:17]}  Bxd3 {[%clk 0:01:50]} 25. Bxd3 {[%clk 0:02:18]}  Rd8 {[%clk 0:01:38]} 26. Be2 {[%clk 0:02:17]}  Rxd1+ {[%clk 0:01:37]} 27. Bxd1 {[%clk 0:02:17]}  e5 {[%clk 0:01:34]} 28. Be2 {[%clk 0:02:10]}  Kf8 {[%clk 0:01:32]} 29. Bf2 {[%clk 0:02:09]}  Ne6 {[%clk 0:01:29]} 30. a4 {[%clk 0:02:09]}  bxa4 {[%clk 0:01:02]} 31. bxa4 {[%clk 0:01:59]}  Nd4 {[%clk 0:01:02]} 32. Bxa6 {[%clk 0:01:58]}  Ke7 {[%clk 0:00:59]} 33. c3 {[%clk 0:01:57]}  Nc6 {[%clk 0:00:47]} 34. Bb5 {[%clk 0:01:54]}  Kd6 {[%clk 0:00:41]} 35. Kc2 {[%clk 0:01:48]}  Bf6 {[%clk 0:00:34]} 36. Kd3 {[%clk 0:01:34]}  Bd8 {[%clk 0:00:33]} 37. Bc4 {[%clk 0:01:28]}  f5 {[%clk 0:00:26]} 38. Bf7 {[%clk 0:01:27]}  Ne7 {[%clk 0:00:26]} 39. Kc4 {[%clk 0:01:22]}  Kc6 {[%clk 0:00:26]} 40. Be8+ {[%clk 0:01:21]}  Kd6 {[%clk 0:00:20]} 41. Bc5+ {[%clk 0:01:16]}  Kc7 {[%clk 0:00:19]} 42. a5 {[%clk 0:01:14]}  Nc8 {[%clk 0:00:18]} 43. Bxg6 {[%clk 0:01:12]}  Bxh4 {[%clk 0:00:17]} 44. Bxf5 {[%clk 0:01:12]}  Bg3 {[%clk 0:00:14]} 45. a6 {[%clk 0:01:09]}  Kb8 {[%clk 0:00:06]} 46. Bxc8 {[%clk 0:00:53]}  Kxc8 {[%clk 0:00:06]} 47. Bd6 {[%clk 0:00:53]}  h4 {[%clk 0:00:04]} 48. Kd5 {[%clk 0:00:53]}  e4 {[%clk 0:00:04]} 49. Bxg3 {[%clk 0:00:49]}  exf3 {[%clk 0:00:03]} 50. Bxh4 {[%clk 0:00:48]}  fxg2 {[%clk 0:00:03]} 51. Bf2 {[%clk 0:00:49]}  Kb8 {[%clk 0:00:03]} 52. Ke4 {[%clk 0:00:48]}  Kc7 {[%clk 0:00:03]} 53. Kf3 {[%clk 0:00:49]}  Kb8 {[%clk 0:00:03]} 54. Kxg2 {[%clk 0:00:49]}  Ka8 {[%clk 0:00:04]} 55. c4 {[%clk 0:00:49]}  Kb8 {[%clk 0:00:04]} 56. Bb6 {[%clk 0:00:49]}  Ka8 {[%clk 0:00:04]} 57. c5 {[%clk 0:00:50]}  Kb8 {[%clk 0:00:05]} 58. c6 {[%clk 0:00:50]}  Ka8 {[%clk 0:00:05]} 59. Kf3 {[%clk 0:00:51]}  Kb8 {[%clk 0:00:05]} 60. Ke4 {[%clk 0:00:52]}  Ka8 {[%clk 0:00:05]} 61. Kd5 {[%clk 0:00:52]}  Kb8 {[%clk 0:00:06]} 62. Kd6 {[%clk 0:00:53]}  Ka8 {[%clk 0:00:06]} 63. Kd7 {[%clk 0:00:53]}  Kb8 {[%clk 0:00:06]} 64. Ba5 {[%clk 0:00:54]}  Ka8 {[%clk 0:00:07]} 65. c7 {[%clk 0:00:55]}  Ka7 {[%clk 0:00:03]} 66. Bd2 {[%clk 0:00:53]} 1-0


[Site "https://www.chess.com"]

[Event "Titled Tuesday Blitz August 15 Late 2023"]
[White "Nasir, Zehn"]
[Black "Manukian, Artak"]
[WhiteFideId "2613239"]
[BlackFideId "13301373"]
[WhiteElo "2617"]
[BlackElo "2435"]
[Result "1/2-1/2"]
[Round "4"]
[TimeControl "180+1"]
[Date "2023.08.15"]
[WhiteClock "0:00:20"]
[BlackClock "0:01:25"]
[Board "89"]

1. d4 {[%clk 0:03:00]}  Nf6 {[%clk 0:02:58]} 2. Bf4 {[%clk 0:02:56]}  c5 {[%clk 0:02:57]} 3. e3 {[%clk 0:02:56]}  d5 {[%clk 0:02:57]} 4. Nc3 {[%clk 0:02:55]}  a6 {[%clk 0:02:52]} 5. Nf3 {[%clk 0:02:54]}  Bg4 {[%clk 0:02:51]} 6. Be2 {[%clk 0:02:45]}  e6 {[%clk 0:02:50]} 7. O-O {[%clk 0:02:44]}  Nc6 {[%clk 0:02:49]} 8. Ne5 {[%clk 0:02:43]}  Bxe2 {[%clk 0:02:47]} 9. Nxe2 {[%clk 0:02:44]}  Nxe5 {[%clk 0:02:46]} 10. Bxe5 {[%clk 0:02:45]}  Bd6 {[%clk 0:02:46]} 11. c4 {[%clk 0:02:32]}  dxc4 {[%clk 0:02:43]} 12. Qc2 {[%clk 0:02:11]}  b5 {[%clk 0:02:42]} 13. a4 {[%clk 0:02:01]}  Bxe5 {[%clk 0:02:40]} 14. dxe5 {[%clk 0:02:01]}  Nd7 {[%clk 0:02:40]} 15. Rfd1 {[%clk 0:01:57]}  Qc7 {[%clk 0:02:36]} 16. axb5 {[%clk 0:01:54]}  Nxe5 {[%clk 0:02:36]} 17. bxa6 {[%clk 0:01:48]}  O-O {[%clk 0:02:33]} 18. h3 {[%clk 0:01:38]}  Qb6 {[%clk 0:02:20]} 19. f4 {[%clk 0:01:32]}  Nd3 {[%clk 0:02:17]} 20. Rdb1 {[%clk 0:01:06]}  Rxa6 {[%clk 0:02:12]} 21. Qxc4 {[%clk 0:00:50]}  Rxa1 {[%clk 0:02:09]} 22. Rxa1 {[%clk 0:00:51]}  Qxb2 {[%clk 0:02:06]} 23. Ra2 {[%clk 0:00:42]}  Qb1+ {[%clk 0:01:59]} 24. Kh2 {[%clk 0:00:42]}  Nf2 {[%clk 0:01:55]} 25. Ng1 {[%clk 0:00:34]}  Ne4 {[%clk 0:01:47]} 26. Rc2 {[%clk 0:00:31]}  Qb4 {[%clk 0:01:39]} 27. Qxb4 {[%clk 0:00:28]}  cxb4 {[%clk 0:01:40]} 28. Rc4 {[%clk 0:00:27]}  Rb8 {[%clk 0:01:36]} 29. Rxe4 {[%clk 0:00:22]}  b3 {[%clk 0:01:36]} 30. Ne2 {[%clk 0:00:22]}  b2 {[%clk 0:01:36]} 31. Nc3 {[%clk 0:00:23]}  b1=Q {[%clk 0:01:33]} 32. Nxb1 {[%clk 0:00:23]}  Rxb1 {[%clk 0:01:33]} 33. Ra4 {[%clk 0:00:23]}  h5 {[%clk 0:01:32]} 34. e4 {[%clk 0:00:20]}  g6 {[%clk 0:01:25]} 1/2-1/2


[Site "https://www.chess.com"]